Workbook

Sheet NSU
B1: Juulia Kuoppala | E1: 10.5.2000 Lappajärvi
B2: SUPERPESIS | E2: Runkosarja | I2: Kärkilyönnit (KL), pesänvälit | P2: Ylempi loppusarja | U2: Alempi loppusarja | AB2: Arvo-ottelut ja mitalit
B3: Vuosi | C3: Sija | D3: Seura | E3: OTT | F3: KUN | G3: LÖI | H3: TOI | I3: KL | J3: 0 > 1 | K3: 1 > 2 | L3: 2 > 3 | M3: 3 > k | N3: KL-% | P3: OTT | Q3: KUN | R3: LÖI | S3: TOI | T3: KL | U3: OTT | V3: KUN | W3: LÖI | X3: TOI | Y3: KL | Z3: IL | AA3: LL | AB3: Halli | AC3: K | AD3: H | AE3: P
B4: 2018 | C4: 1. | D4: Virkiä 2 | F4: suomensarja
B5: 2019 | C5: 6. | D5: Virkiä 2 | F5: suomensarja
B6: 2019 | C6: 11. | D6: Mailattaret | F6: ykköspesis
B7: 2019 | C7: 3. | D7: Virkiä | E7: 3 | F7: 0 | G7: 0 | H7: 4 | I7: 5 | J7: 2 | K7: 1 | L7: 2 | M7: 0 | N7: 62.5 % | O7: 8 | AE7: 1
B8: 2020 | C8: 2. | D8: Mailattaret | F8: ykköspesis
B9: 2020 | C9: 12. | D9: MyVe | E9: 10 | F9: 0 | G9: 0 | H9: 3 | I9: 31 | J9: 14 | K9: 14 | L9: 3 | M9: 0 | N9: 49.2 % | O9: =PRODUCT(I9/N9) -> 62.99532615
B10: 2020 | C10: 4. | D10: Virkiä | E10: 12 | F10: 0 | G10: 1 | H10: 10 | I10: 25 | J10: 6 | K10: 13 | L10: 5 | M10: 1 | N10: 56.8 % | O10: =PRODUCT(I10/N10) -> 44 | P10: 5 | Q10: 0 | R10: 1 | S10: 0 | T10: 7
B11: 2021 | C11: 4. | D11: Virkiä | E11: 23 | F11: 1 | G11: 6 | H11: 8 | I11: 57 | J11: 25 | K11: 15 | L11: 10 | M11: 7 | N11: 50.4 % | O11: 113 | P11: 10 | Q11: 0 | R11: 1 | S11: 0 | T11: 14
B12: 2022 | C12: 3. | D12: Virkiä | E12: 6 | F12: 1 | G12: 1 | H12: 8 | I12: 15 | J12: 12 | K12: 0 | L12: 1 | M12: 2 | N12: 71.4 % | O12: 21 | AE12: 1
B13: 2023 | C13: 6. | D13: LaVe | F13: ykköspesis
B14: 2023 | C14: 3. | D14: Virkiä | E14: 23 | F14: 2 | G14: 2 | H14: 9 | I14: 50 | J14: 18 | K14: 21 | L14: 7 | M14: 4 | N14: 59.5 % | O14: 84 | P14: 10 | Q14: 0 | R14: 0 | S14: 1 | T14: 13 | AE14: 1
B15: 2024 | C15: 8. | D15: Mailattaret | E15: 24 | F15: 0 | G15: 1 | H15: 11 | I15: 62 | J15: 31 | K15: 29 | L15: 1 | M15: 1 | N15: 49.6 % | O15: 125 | P15: 6 | Q15: 0 | R15: 1 | S15: 1 | T15: 3
B16: Yhteensä | E16: =SUM(E6:E15) -> 101 | F16: 4 | G16: 11 | H16: 53 | I16: 245 | J16: 108 | K16: 93 | L16: 29 | M16: 15 | N16: =PRODUCT(I16/O16) -> 53.5 % | O16: =SUM(O6:O15) -> 457.9953262 | P16: 31 | Q16: 0 | R16: 3 | S16: 2 | T16: 37 | U16: 0 | V16: 0 | W16: 0 | X16: 0 | Y16: 0 | Z16: 0 | AA16: 0 | AB16: 0 | AC16: 0 | AD16: 0 | AE16: 3
B17: Pesispörssi | D17: =SUM(F16:H16)+((I16-F16-G16)/3)+(E16/3)+(Z16*25)+(AA16*25)+(AB16*10)+(AC16*25)+(AD16*20)+(AE16*15)-15-15 -> 193.3
B19: URA SUPERISSA | E19: OTT | F19: KUN | G19: LÖI | H19: TOI | I19: KL | K19: ka/L | L19: ka/T | M19: ka/KL | N19: K - % | P19: ENSIMMÄISET
B20: Runkosarja | E20: =PRODUCT(E16) -> 101 | F20: =PRODUCT(F16) -> 4 | G20: =PRODUCT(G16) -> 11 | H20: =PRODUCT(H16) -> 53 | I20: =PRODUCT(I16) -> 245 | K20: =PRODUCT((F20+G20)/E20) -> 0.15 | L20: =PRODUCT(H20/E20) -> 0.52 | M20: =PRODUCT(I20/E20) -> 2.43 | N20: =PRODUCT(N16) -> 53.5 % | O20: =PRODUCT(O16) -> 457.9953262 | P20: Ottelu | R20: 15.05. 2019 Virkiä - SMJ 2-0 (5-0, 2-1) | AA20: 1. ottelu | AC20: 19 v 0 kk 5 pv
B21: Ylempi loppusarja | E21: =PRODUCT(P16) -> 31 | F21: =PRODUCT(Q16) -> 0 | G21: 3 | H21: 2 | I21: 37 | K21: =PRODUCT((F21+G21)/E21) -> 0.10 | L21: =PRODUCT(H21/E21) -> 0.06 | M21: =PRODUCT(I21/E21) -> 1.19 | N21: =PRODUCT(I21/O21) -> 32.2 % | O21: 115 | P21: Lyöty | R21: 14.08. 2020 Virkiä - KeKi 2-0 (11-2, 9-2) | AA21: 20. ottelu | AC21: 20 v 3 kk 4 pv
B22: Alempi loppusarja | P22: Tuotu | R22: 03.07. 2019 KeKi - Virkiä 0-2 (1-6, 2-7) | AA22: 2. ottelu | AC22: 19 v 1 kk 23 pv
B23: KAIKKI | E23: =SUM(E20:E22) -> 132 | F23: =SUM(F20:F22) -> 4 | G23: =SUM(G20:G22) -> 14 | H23: =SUM(H20:H22) -> 55 | I23: =SUM(I20:I22) -> 282 | K23: =PRODUCT((F23+G23)/E23) -> 0.14 | L23: =PRODUCT(H23/E23) -> 0.42 | M23: =PRODUCT(I23/E23) -> 2.14 | N23: =PRODUCT(I23/O23) -> 49.2 % | O23: =SUM(O20:O22) -> 572.9953262 | P23: Kunnari | R23: 13.07. 2021 SiiPe - Virkiä 0-1 (3-3, 1-6) | AA23: 40. ottelu | AC23: 21 v 2 kk 2 pv
B25: Seurat | D25: ViVe = Vimpelin Veto (1934), kasvattajaseura
D26: Virkiä = Lapuan Virkiä (1907)
D27: Mailattaret (2015)
D28: MyVe = Mynämäen Vesa (1920)
D29: LaVe = Lappajärven Veikot (1911)
